Cogmind - Beta 15 @@@ ROGUE MODE // 2025.08.10 @ 23:45:47 Player: WitherScout Result: Destroyed by G-34 Mercenary with Small Laser Performance ------------- Evolutions (0) 0 Regions Visited (1) 200 Robots Destroyed (4) 20 Value Destroyed (162) 162 Prototype IDs (0) 0 Alien Tech Used (0) 0 Bonus (0) 0 TOTAL SCORE: 382 Bonus ------- None Cogmind --------- Core Integrity 0/250 Matter 300/300 Energy 100/100 System Corruption 0% Temperature Cool (6) Movement Core (150) Ox2 Location -10/Materials Parts ------- > --- POWER (1) -------- (None) > --- PROPULSION (2) --- (None) > --- UTILITY (2) ------ Small Storage Unit > --- WEAPON (2) ------- Maul > --- INVENTORY (8) ---- Ion Engine Light Nuclear Core Aluminum Leg Aluminum Leg Improved Heat Sink Light Assault Rifle Maul Peak State ------------ > --- POWER ------------ Light Ion Engine > --- PROPULSION ------- Aluminum Leg Aluminum Leg > --- UTILITY ---------- Small Storage Unit > --- WEAPON ----------- Medium Laser Maul > --- INVENTORY -------- Ion Engine Light Nuclear Core Aluminum Leg Aluminum Leg Improved Heat Sink Light Assault Rifle Maul [Rating: 8] Favorites ----------- Power Light Ion Engine Engine Light Ion Engine Propulsion Aluminum Leg Leg Aluminum Leg Wheel Compact Wheel Utility Small Storage Unit Storage Small Storage Unit Weapon Medium Laser Energy Gun Medium Laser Ballistic Gun Light Assault Rifle Impact Weapon Maul Build | -11 -10 ------- Run | Yrd Mat Slots Evolved . | . . Power . | . . Propulsion . | . . Utility . | . . Weapon . | . . Parts Attached 8 | 7 1 Power 1 | 1 . Engine 1 | 1 . Core . | . . Reactor . | . . Propulsion 3 | 3 . Treads . | . . Leg 2 | 2 . Wheel 1 | 1 . Hover . | . . Flight . | . . Utility 1 | 1 . Device . | . . Storage 1 | 1 . Processor . | . . Hackware . | . . Protection . | . . Artifact . | . . Weapon 3 | 2 1 Energy Gun 1 | 1 . Energy Cannon . | . . Ballistic Gun 1 | 1 . Ballistic Cannon . | . . Launcher . | . . Special Weapon . | . . Impact Weapon 1 | . 1 Slashing Weapon . | . . Piercing Weapon . | . . Special Melee Weapon . | . . Unidentified Prototypes . | . . Parts Lost 4 | . 4 Power 1 | . 1 Propulsion 2 | . 2 Utility . | . . Weapon 1 | . 1 Highest Loss Streak 4 | . 4 To Critical Strikes . | . . Average Backups 2 | . 3 Power 1 | . 1 Propulsion . | . 1 Utility . | . . Weapon . | . . Tool/Special . | . . Unused Backups 6 | . 6 Power 2 | . 2 Propulsion 2 | . 2 Utility 1 | . 1 Weapon 1 | . 1 Tool/Special . | . . Average Slot Usage (%) 78 | . 78 Engine 13 | . 13 Leg 24 | . 24 Storage 14 | . 14 Energy Gun 11 | . 11 Ballistic Gun 9 | . 9 Impact Weapon 4 | . 4 Peak Build Rating 8 | 6 8 Average Rating 5 | 4 6 On Entrance 3 | . 6 Naked Turns . | . . Heaviest Build 13 | 11 13 Greatest Support 20 | 20 20 Greatest Overweight (x) 3 | 1 3 Average Overweight (x) . | . . Largest Inventory Capacity 8 | 8 8 Average Capacity 7 | 7 8 Most Carried 7 | 1 7 Average Carried 3 | . 3 Final Capacity 8 | 8 8 Final Carried 7 | 1 7 Class Distribution -------------------- 100% | Mutant Dominant Class ---------------- Mutant | -10/Materials Resources | -11 -10 ----------- Run | Yrd Mat Matter Collected 281 | 234 47 Remotely . | . . Salvage Created 154 | . 154 Parts 7 | . 7 Haulers Intercepted . | . . Recyclers Shooed . | . . Parts Field Recycled . | . . Retrieved Matter . | . . Parts Self-Destructed . | . . Prevented . | . . Kills | -11 -10 ------- Run | Yrd Mat Combat Hostiles Destroyed 4 | . 4 Melee 2 | . 2 Guns 2 | . 2 Classes Destroyed 1 | . 1 Grunt 4 | . 4 Best Kill Streak 2 | . 2 Combat Bots Only 2 | . 2 Max Kills in Single Turn 1 | . 1 Gunslinging . | . . Exploded . | . . Melee 1 | . 1 Uniques/NPCs Destroyed . | . . Combat | -11 -10 -------- Run | Yrd Mat Hostile Shots Fired 68 | . 68 Missed 20 | . 20 Hits 48 | . 48 Projectile 48 | . 48 Damage Taken 601 | . 601 Core 259 | . 259 Absorbed by Shields . | . . Core Remaining (%) 100 | 100 . Volleys Fired 12 | . 12 Largest 2 | . 2 Hottest 70 | . 70 Shots Fired 23 | . 23 Gun 23 | . 23 Cannon . | . . Launcher . | . . Special . | . . Kinetic 11 | . 11 Thermal 12 | . 12 Explosive . | . . Electromagnetic . | . . Robot Hit Streak 13 | . 13 Robot Miss Streak 3 | . 3 Penetration Max . | . . Secondary Targets . | . . Shots Hit Robots 26 | . 26 Core Hits 8 | . 8 Critical Kills 1 | . 1 Critical Parts Destroyed 1 | . 1 Critical Strikes 2 | . 2 Smash 2 | . 2 Melee Attacks 13 | . 13 Impact 13 | . 13 Slashing . | . . Piercing . | . . Sneak Attacks . | . . Combat Hostiles . | . . Follow-up Attacks . | . . Damage Inflicted 534 | . 534 Guns 166 | . 166 Cannons . | . . Explosions . | . . Melee 368 | . 368 Ramming . | . . Kinetic 55 | . 55 Thermal 111 | . 111 Explosive . | . . Electromagnetic . | . . Impact 368 | . 368 Slashing . | . . Piercing . | . . Highest Corruption . | . . Average Corruption . | . . Corruption Purged . | . . Corruption Blocked . | . . Overload Shots . | . . Overflow Damage 29 | . 29 Projectiles . | . . Explosions . | . . Melee 29 | . 29 Knockbacks 1 | . 1 Impact 1 | . 1 Kinetic . | . . Secondary . | . . Self-Inflicted Damage . | . . Shots . | . . Rammed . | . . Targets Rammed . | . . Kicked . | . . Crushed . | . . Highest Temperature 213 | . 213 Average Temperature 85 | . 85 Received Heat Transfer 333 | . 333 Siege Activations . | . . Martial Activations . | . . Shielding Activations . | . . Robots Disrupted . | . . Combat Hostiles . | . . Robots Corrupted . | . . Combat Hostiles . | . . Parts Fried . | . . Impact Corruptions 1 | . 1 Robots Melted . | . . Combat Hostiles . | . . Parts Melted 3 | . 3 Heat Transferred 333 | . 333 Parts Sabotaged . | . . Parts Stolen . | . . Parts Stripped . | . . Power Chain Reactions . | . . Alert | -11 -10 ------- Run | Yrd Mat Maximum Alert Level . | . . Low Security (%) 100 | 100 100 Level 1 . | . . Level 2 . | . . Level 3 . | . . Level 4 . | . . Level 5 . | . . High Security . | . . Max Security . | . . Peak Influence 40 | . 40 Initial . | . . Average 11 | . 15 Influence Increases 114 | . 114 Destroy 0b10 Robot/C 80 | . 80 Destroy Leader 20 | . 20 Successful Hack 14 | . 14 Influence Decreases 104 | . 104 Time Decay 74 | . 74 Lost Part 30 | . 30 Squads Dispatched 1 | . 1 Investigation . | . . Extermination . | . . Reinforcement 1 | . 1 Assault . | . . Garrison . | . . Intercept . | . . Searches Triggered . | . . Construction Impeded . | . . Haulers Reinforced . | . . Active Scanning Responses . | . . Cargo Convoy Interrupts . | . . Stealth | -11 -10 --------- Run | Yrd Mat Distress Signals 2 | . 2 Communications Jammed . | . . Distress Signals . | . . Times Spotted 8 | . 8 Peak Tracking Total 4 | . 4 Tactical Retreats . | . . Traps | -11 -10 ------- Run | Yrd Mat Traps Triggered . | . . Indirectly . | . . Trap Hack Attempts . | . . Triggered . | . . Disarmed . | . . Reprogrammed . | . . Reused . | . . Traps Extracted . | . . Installed . | . . Triggered . | . . Machines | -11 -10 ---------- Run | Yrd Mat Machines Disabled . | . . Max in Single Turn . | . . Machines Repaired . | . . Machines Dismantled . | . . Machines Sabotaged . | . . Overloaded Fab Kills . | . . Hacking | -11 -10 --------- Run | Yrd Mat Machines Accessed 2 | . 2 Terminals 2 | . 2 Fabricators . | . . Repair Stations . | . . Recycling Units . | . . Scanalyzers . | . . Garrison Access . | . . Total Hacks 3 | . 3 Successful 3 | . 3 Failed . | . . Catastrophic . | . . Database Lockouts . | . . Manual . | . . Terminals 3 | . 3 Fabricators . | . . Repair Stations . | . . Recycling Units . | . . Scanalyzers . | . . Garrison Access . | . . Terminal Hacks 3 | . 3 Branch Access Points 1 | . 1 Security Status 1 | . 1 Zone Layout 1 | . 1 Fabricator Hacks . | . . Repair Station Hacks . | . . Recycling Unit Hacks . | . . Scanalyzer . | . . Garrison Access Hacks . | . . Unauthorized Hacks . | . . Terminals . | . . Fabricators . | . . Repair Stations . | . . Recycling Units . | . . Scanalyzers . | . . Garrison Access . | . . Data Cores Recovered . | . . Used . | . . Hacking Detections 2 | . 2 Full Trace Events . | . . Feedback Events . | . . Feedback Blocked . | . . Robot Schematics Acquired . | . . Robots Built . | . . Authchips . | . . Time . | . . Total Robot Build Rating . | . . Part Schematics Acquired . | . . Parts Built . | . . Authchips . | . . Time . | . . Total Part Build Rating . | . . Parts Repaired . | . . Time . | . . Parts Recycled . | . . Recycled Matter . | . . Retrieved Matter . | . . Retrieved Components . | . . Parts Scanalyzed . | . . Part Schematics Acquired . | . . Parts Damaged . | . . Bothacking | -11 -10 ------------ Run | Yrd Mat Used RIF Installer . | . . Robots Hacked . | . . Non-combat . | . . Combat . | . . Robot Hacks Applied . | . . Relay Couplers Released . | . . Fabnet Peak Effective % . | . . Robots Rewired . | . . Allies Hacked . | . . Hacks Repelled . | . . Allies | -11 -10 -------- Run | Yrd Mat Total Allies . | . . Largest Group . | . . Highest-Rated Group . | . . Highest-Rated Ally . | . . Total Orders . | . . Ally Attacks . | . . Total Damage . | . . Kills . | . . Allies Corrupted . | . . Allies Melted . | . . Intel | -11 -10 ------- Run | Yrd Mat Active Infowar (turns) . | . . Robot Analysis Total . | . . Derelict Logs Recovered . | . . Drone Launches . | . . Drone Recoveries . | . . Exploration | -11 -10 ------------- Run | Yrd Mat Turns Passed 234 | 58 176 Spaces Moved 115 | 40 75 Core 8 | 3 5 Treads . | . . Legs 103 | 33 70 Wheels 4 | 4 . Hover . | . . Flight . | . . Fastest Speed 50 | 50 120 Average Speed 121 | 115 124 Slowest Speed 200 | 190 200 Overloaded Moves . | . . Propulsion Burnouts . | . . Robots Hopped . | . . Potential Cave-ins . | . . Cave-ins Triggered . | . . Exploration Rate (%) 8 | 3 14 Regions Visited 1 Branch Regions . Pre-discovered Areas . | . . Known Exits Taken . | . . Unknown Exits Taken 1 | 1 . Scrap Searched . | . . Spaces Dug . | . . Terrain Destroyed . | . . Melee . | . . Projectile . | . . AOE . | . . Terrain Rammed . | . . Walls Destroyed . | . . Machines Disabled . | . . Actions | -11 -10 --------- Run | Yrd Mat Total 161 | 48 113 Wait 6 | . 6 Move 114 | 39 75 Hop . | . . Pick Up 6 | 1 5 Fast Attach 8 | 7 1 Attach . | . . Detach 1 | . 1 Swap . | . . Drop 1 | 1 . Fire 12 | . 12 Melee 13 | . 13 Ram . | . . Kick . | . . Crush . | . . Escape Stasis . | . . Rewire . | . . Trap . | . . Miscellaneous . | . . Route ------- -11/Scrapyard -10/Materials (discovered 1 exit: Min) History --------- Turn | Location | Event 13 | -11/Scrapyard | Discovered new exit (range 16) 59 | -11/Scrapyard | Entered Materials 67 | -10/Materials | Identified exit to Mines 197 | -10/Materials | Core integrity fell below 50% 224 | -10/Materials | Core integrity fell below 20% 235 | -10/Materials | Destroyed by G-34 Mercenary with Small Laser Last Messages --------------- Sml. Laser melted. G-34 Mercenary destroyed. Acquired Aluminum Leg. Acquired 47 matter. Acquired Lgt. Nuclear Core. Acquired Aluminum Leg. Acquired Imp. Heat Sink. Acquired Maul. G-34 Mercenary destroyed. G-47 Trooper suffers critical hit (Smash). Destroyed Aluminum Leg. G-47 Trooper system corrupted by crushing effect. G-47 Trooper knocked back. G-47 Trooper misfires. Med. Laser destroyed. Aluminum Leg destroyed. G-47 Trooper suffers critical hit (Smash). G-47 Trooper destroyed. Lgt. Ion Engine destroyed. Map ----- +----------------------------------------------------+ | ?????????????????????????????????????????????????? | | ?????????????????????????????????????????????????? | | ?????????????????????????????????????????????????? | | ?????????????????????????????????????????????????? | | ?????????????????????????????????????????????????? | | ??????????????????????????????????>??????????????? | | ?????????????????????????????????????????????????? | | ?????????????????????????????????????????????????? | | ?????????????????????????????????????????????????? | | ??????????????????+??????????????????????????????? | | ???????????####??? ??????????????????????????????? | | ???????????#"""#?? ??????????????????????????????? | | ??????????##"Y"### ??????????????????????????????? | | ??????????# !!! # #?????????????????????????????? | | ??????????# !!! # #?????????????????????????????? | | ######????# ]!! # #?########???????#????????????? | | #????# # #?#!!!! /#?????? #????????????? | | #????# # #?#!!!! /#????? #????????????? | | #????# # #?# #???? ##???????????? | | #########+### ### #### #???????????? | | % % o [ #???????????? | | # ######## !%^ " #???????????? | | # #??????# %m= ^^ g #???????????? | | # #??????########### !! ## #???????????? | | # #????????# # !! #??#####???????????? | | # #????????# T + !@ #??????????????????? | | # #????????# # g #??????????????????? | | # #????????###"T"### #??????????????????? | | # ########???#"""####+#######??????????????????? | | # # ##??##### ????????????????????????? | | # # T "#??????# ????????????????????????? | | # + T#??????# ????????????????????????? | | # # "#??????# ????????????????????????? | | # # ##??????# ????????????????????????? | | # # #???????# ????????????????????????? | | ############???????# ????????????????????????? | | ???????????????????# ????????????????????????? | | ???????????????????# ????????????????????????? | | ???????????????????######????????????????????????? | | ?????????????????????????????????????????????????? | | ?????????????????????????????????????????????????? | | ?????????????????????????????????????????????????? | | ?????????????????????????????????????????????????? | | | | | | | | | | | | | | | +----------------------------------------------------+ Best States ------------- Heat Dissipation 25 Energy Generation 10 Energy Capacity 125 Matter Stores 300 Matter Capacity 300 Sight Range 16 Terrain Scan Density 10 Evasion (%) 55 Item Schematics ----------------- None Robot Schematics ------------------ None Fabricated ------------ Nothing Repaired ---------- Nothing Alien Tech Used ----------------- None Achievements -------------- None Challenges ------------ None Game ------ Seed StealthLinearStrikerail Manual? 0 Play Time 00:06:26 Cumulative 3.4 hours Start 2025.08.10 @ 23:42:07 End 2025.08.10 @ 23:45:47 Sessions 1 Manual Loads 0 Difficulty Rogue Special Mode None Game No. 9 Rogue 9 Adventurer 0 Explorer 0 Win Type - Total 0 Types 0/0/0/0/0/0/0/0/0/0 Lore% 0 Gallery% 7 Achievement% 10 Wizard Run 0 Options --------- Layout 1 ASCII 1 Keyboard 0 Movement Numpad Keybinds 0 Fullscreen 1 Font 24/Cog Map View 50x35 Zoom Use 0% Tactical HUD 0 Map Filters NONE Filters NONE Steam 0 RUN: c31e814d-b8f4-4574-b290-530eef9bf73f